[Event "Early-Titled-Tuesday-Blitz-May-14-2024"]
[Site "Chess.com"]
[Date "2024.05.14"]
[Round "8"]
[White "Josgar05"]
[Black "ChessSwole"]
[Result "1-0"]
[WhiteElo "2453"]
[BlackElo "2589"]
[TimeControl "180+1"]
[EndTime "9:32:00 PDT"]
[Termination "Josgar05 won by resignation"]

1. Nf3 {[%clk 0:03:00.9]} 1... c5 {[%clk 0:02:59.6]} 2. b3 {[%clk 0:03:01.1]}
2... d5 {[%clk 0:02:58]} 3. Bb2 {[%clk 0:03:01.4]} 3... Nc6 {[%clk 0:02:58.1]}
4. e3 {[%clk 0:03:01.1]} 4... Nf6 {[%clk 0:02:56.9]} 5. d4 {[%clk 0:03:01.1]}
5... cxd4 {[%clk 0:02:55.8]} 6. exd4 {[%clk 0:03:02]} 6... Bg4 {[%clk
0:02:55.3]} 7. Be2 {[%clk 0:03:01.5]} 7... e6 {[%clk 0:02:55.8]} 8. h3 {[%clk
0:03:01.1]} 8... Bh5 {[%clk 0:02:55.2]} 9. O-O {[%clk 0:03:00.8]} 9... Bd6
{[%clk 0:02:55.4]} 10. Nbd2 {[%clk 0:03:00.1]} 10... O-O {[%clk 0:02:55.4]} 11.
Re1 {[%clk 0:03:00.5]} 11... Rc8 {[%clk 0:02:54.8]} 12. a3 {[%clk 0:03:00.2]}
12... Ne7 {[%clk 0:02:34.1]} 13. c4 {[%clk 0:02:54.3]} 13... b6 {[%clk
0:02:19.9]} 14. Rc1 {[%clk 0:02:49.9]} 14... Bg6 {[%clk 0:02:04.2]} 15. Bf1
{[%clk 0:02:39.6]} 15... Nf5 {[%clk 0:02:04.3]} 16. Ne5 {[%clk 0:02:33.3]} 16...
Qe7 {[%clk 0:01:52.3]} 17. b4 {[%clk 0:02:21.5]} 17... dxc4 {[%clk 0:01:51.3]}
18. Ndxc4 {[%clk 0:02:22.4]} 18... Bb8 {[%clk 0:01:42.3]} 19. Be2 {[%clk
0:02:07.2]} 19... Rfd8 {[%clk 0:01:38.1]} 20. Bf3 {[%clk 0:02:07.1]} 20... Nd5
{[%clk 0:01:38.4]} 21. Bxd5 {[%clk 0:01:32.4]} 21... Rxd5 {[%clk 0:01:39.3]} 22.
Nxb6 {[%clk 0:01:32.8]} 22... axb6 {[%clk 0:00:55.8]} 23. Rxc8+ {[%clk
0:01:30.1]} 23... Rd8 {[%clk 0:00:56.5]} 24. Nc6 {[%clk 0:01:23.2]} 24... Rxc8
{[%clk 0:00:56.8]} 25. Nxe7+ {[%clk 0:01:22.5]} 25... Nxe7 {[%clk 0:00:57.7]}
26. g3 {[%clk 0:01:15.7]} 26... Nd5 {[%clk 0:00:57.9]} 27. Qf3 {[%clk
0:01:06.8]} 27... h5 {[%clk 0:00:55.3]} 28. Rc1 {[%clk 0:01:06.7]} 28... Rd8
{[%clk 0:00:53.4]} 29. Rc6 {[%clk 0:01:02.4]} 29... h4 {[%clk 0:00:52.7]} 30.
Bc1 {[%clk 0:00:47.4]} 30... hxg3 {[%clk 0:00:52.1]} 31. fxg3 {[%clk 0:00:48.3]}
31... Nf6 {[%clk 0:00:32.7]} 32. Rc3 {[%clk 0:00:19.9]} 32... Nd5 {[%clk
0:00:28.2]} 33. Rb3 {[%clk 0:00:19.3]} 33... Rc8 {[%clk 0:00:26.7]} 34. Bd2
{[%clk 0:00:18.8]} 34... b5 {[%clk 0:00:26.9]} 35. Qf1 {[%clk 0:00:15.5]} 35...
Rc2 {[%clk 0:00:26]} 36. Be1 {[%clk 0:00:12.9]} 36... Ba7 {[%clk 0:00:25]} 37.
Bf2 {[%clk 0:00:11.8]} 37... Nc7 {[%clk 0:00:16.4]} 38. Rf3 {[%clk 0:00:10.8]}
38... Be4 {[%clk 0:00:16.7]} 39. Rf4 {[%clk 0:00:10.8]} 39... Bc6 {[%clk
0:00:16.9]} 40. h4 {[%clk 0:00:10.8]} 40... Nd5 {[%clk 0:00:17.4]} 41. Rg4
{[%clk 0:00:09.7]} 41... Nf6 {[%clk 0:00:16.7]} 42. Rf4 {[%clk 0:00:09.7]} 42...
Nd5 {[%clk 0:00:17.3]} 43. Rg4 {[%clk 0:00:09.5]} 43... Nc3 {[%clk 0:00:18]} 44.
Kh2 {[%clk 0:00:09.4]} 44... Ne4 {[%clk 0:00:17]} 45. Rf4 {[%clk 0:00:08.2]}
45... Bxd4 {[%clk 0:00:15.2]} 46. Qd3 {[%clk 0:00:06.8]} 46... Bxf2 {[%clk
0:00:13.8]} 47. Qxc2 {[%clk 0:00:06.6]} 47... Bxg3+ {[%clk 0:00:13.2]} 48. Kh3
{[%clk 0:00:07.1]} 48... Bxf4 {[%clk 0:00:11.8]} 49. Qxc6 {[%clk 0:00:07.3]}
49... Nd6 {[%clk 0:00:07.7]} 50. a4 {[%clk 0:00:07.3]} 50... bxa4 {[%clk
0:00:07.5]} 51. b5 {[%clk 0:00:07.9]} 51... a3 {[%clk 0:00:08.1]} 52. b6 {[%clk
0:00:07.6]} 52... a2 {[%clk 0:00:08.5]} 53. Qa8+ {[%clk 0:00:07.5]} 53... Kh7
{[%clk 0:00:08]} 54. Qxa2 {[%clk 0:00:08.2]} 54... f5 {[%clk 0:00:04.3]} 55. Qc2
{[%clk 0:00:08.2]} 55... Ne4 {[%clk 0:00:04.3]} 56. b7 {[%clk 0:00:08]} 56...
Kg6 {[%clk 0:00:04]} 57. Qc8 {[%clk 0:00:06.9]} 57... Kf6 {[%clk 0:00:03]} 58.
Qd8+ {[%clk 0:00:06.9]} 58... Kf7 {[%clk 0:00:02.9]} 59. b8=Q {[%clk 0:00:06.1]}
59... Bxb8 {[%clk 0:00:03.1]} 60. Qxb8 {[%clk 0:00:07]} 60... Kf6 {[%clk
0:00:03.5]} 61. Qd8+ {[%clk 0:00:07.1]} 61... Kf7 {[%clk 0:00:03.8]} 62. Kg2
{[%clk 0:00:07.8]} 62... Nf6 {[%clk 0:00:03.1]} 63. Qd4 {[%clk 0:00:08.4]} 63...
Ng4 {[%clk 0:00:02.6]} 64. Qf4 {[%clk 0:00:08.5]} 64... Kf6 {[%clk 0:00:03]} 65.
Qg5+ {[%clk 0:00:08.7]} 65... Kf7 {[%clk 0:00:03.7]} 66. h5 {[%clk 0:00:09.3]}
66... Nf6 {[%clk 0:00:03.6]} 67. Qg6+ {[%clk 0:00:09.6]} 67... Kf8 {[%clk
0:00:03.4]} 68. Kf1 {[%clk 0:00:10.2]} 68... Ng8 {[%clk 0:00:03.1]} 69. Qxe6
{[%clk 0:00:10]} 69... Nh6 {[%clk 0:00:03.3]} 70. Qg6 {[%clk 0:00:10.3]} 70...
Ke7 {[%clk 0:00:03.6]} 71. Qxg7+ {[%clk 0:00:10]} 71... Nf7 {[%clk 0:00:04.3]}
72. h6 {[%clk 0:00:10.6]} 72... Ke6 {[%clk 0:00:05]} 73. h7 {[%clk 0:00:10.3]}
73... f4 {[%clk 0:00:05.7]} 74. Qxf7+ {[%clk 0:00:10.6]} 74... Kxf7 {[%clk
0:00:06.6]} 75. h8=Q {[%clk 0:00:11.3]} 75... Ke6 {[%clk 0:00:07.4]} 76. Qd4
{[%clk 0:00:11.6]} 76... Kf5 {[%clk 0:00:08.3]} 77. Kf2 {[%clk 0:00:11.5]} 77...
Kg4 {[%clk 0:00:09.1]} 78. Kg2 {[%clk 0:00:11.6]} 1-0

[Event "Early-Titled-Tuesday-Blitz-May-14-2024"]
[Site "Chess.com"]
[Date "2024.05.14"]
[Round "8"]
[White "secrethawk1"]
[Black "alvarorodriguezavila"]
[Result "1/2-1/2"]
[WhiteElo "2432"]
[BlackElo "2311"]
[TimeControl "180+1"]
[EndTime "9:32:10 PDT"]
[Termination "Game drawn - insufficient material"]

1. e4 {[%clk 0:02:31.8]} 1... c5 {[%clk 0:02:59.9]} 2. Nf3 {[%clk 0:02:31.2]}
2... g6 {[%clk 0:03:00.5]} 3. d4 {[%clk 0:02:31.7]} 3... cxd4 {[%clk 0:03:01]}
4. Nxd4 {[%clk 0:02:32.5]} 4... Bg7 {[%clk 0:03:01.4]} 5. c4 {[%clk 0:02:33]}
5... Nc6 {[%clk 0:03:02]} 6. Be3 {[%clk 0:02:33.4]} 6... Nf6 {[%clk 0:03:02.6]}
7. Nc3 {[%clk 0:02:33.4]} 7... O-O {[%clk 0:03:03.2]} 8. Be2 {[%clk 0:02:33.3]}
8... d6 {[%clk 0:03:03.8]} 9. O-O {[%clk 0:02:33.5]} 9... Bd7 {[%clk 0:03:03.6]}
10. Qd2 {[%clk 0:02:12.3]} 10... Nxd4 {[%clk 0:03:03.6]} 11. Bxd4 {[%clk
0:02:13.2]} 11... Bc6 {[%clk 0:03:04]} 12. Bd3 {[%clk 0:02:12.8]} 12... a5
{[%clk 0:03:02]} 13. Rae1 {[%clk 0:02:12.7]} 13... a4 {[%clk 0:03:01.1]} 14. f4
{[%clk 0:02:12.2]} 14... Nd7 {[%clk 0:03:00.7]} 15. e5 {[%clk 0:02:07.5]} 15...
e6 {[%clk 0:02:49.6]} 16. Kh1 {[%clk 0:02:02.3]} 16... Qa5 {[%clk 0:02:24.7]}
17. Qe3 {[%clk 0:01:49.2]} 17... dxe5 {[%clk 0:02:07.1]} 18. fxe5 {[%clk
0:01:46]} 18... Rad8 {[%clk 0:01:54.4]} 19. Bb1 {[%clk 0:01:34]} 19... b6 {[%clk
0:01:20.7]} 20. Be4 {[%clk 0:01:09.4]} 20... Bxe4 {[%clk 0:01:00.1]} 21. Nxe4
{[%clk 0:01:10.3]} 21... Bxe5 {[%clk 0:00:59.2]} 22. Bxe5 {[%clk 0:01:05]} 22...
Nxe5 {[%clk 0:00:55.2]} 23. Nf6+ {[%clk 0:00:53.9]} 23... Kg7 {[%clk 0:00:55.3]}
24. Qxe5 {[%clk 0:00:47.1]} 24... Qxe5 {[%clk 0:00:46.8]} 25. Rxe5 {[%clk
0:00:48]} 25... Rd2 {[%clk 0:00:46.9]} 26. Rb5 {[%clk 0:00:42.9]} 26... Rfd8
{[%clk 0:00:43]} 27. Ne4 {[%clk 0:00:40.4]} 27... Rd1 {[%clk 0:00:36.6]} 28. Kg1
{[%clk 0:00:38]} 28... f5 {[%clk 0:00:34.5]} 29. Nf2 {[%clk 0:00:30.3]} 29...
R1d4 {[%clk 0:00:33.1]} 30. Rxb6 {[%clk 0:00:27]} 30... Rxc4 {[%clk 0:00:33.5]}
31. Rxe6 {[%clk 0:00:26.5]} 31... Rd2 {[%clk 0:00:32.8]} 32. b3 {[%clk
0:00:22.6]} 32... Rb4 {[%clk 0:00:30.2]} 33. bxa4 {[%clk 0:00:10.9]} 33... Rxa4
{[%clk 0:00:31.1]} 34. Re7+ {[%clk 0:00:09.9]} 34... Kh6 {[%clk 0:00:30.3]} 35.
h4 {[%clk 0:00:08.9]} 35... Rxh4 {[%clk 0:00:23.3]} 36. Rc1 {[%clk 0:00:06.5]}
36... Ra4 {[%clk 0:00:19.4]} 37. Rcc7 {[%clk 0:00:05.5]} 37... Raxa2 {[%clk
0:00:20]} 38. Rxh7+ {[%clk 0:00:04.6]} 38... Kg5 {[%clk 0:00:20.6]} 39. Nh3+
{[%clk 0:00:04.6]} 39... Kf6 {[%clk 0:00:19]} 40. Rhf7+ {[%clk 0:00:03.9]} 40...
Ke6 {[%clk 0:00:19.6]} 41. Nf4+ {[%clk 0:00:02.3]} 41... Ke5 {[%clk 0:00:18.8]}
42. Nxg6+ {[%clk 0:00:02.5]} 42... Ke4 {[%clk 0:00:19.7]} 43. Rce7+ {[%clk
0:00:02.6]} 43... Kd3 {[%clk 0:00:16.9]} 44. Rd7+ {[%clk 0:00:03.5]} 44... Ke2
{[%clk 0:00:17.4]} 45. Rfe7+ {[%clk 0:00:03.3]} 45... Kd1 {[%clk 0:00:17.5]} 46.
Rxd2+ {[%clk 0:00:03]} 46... Rxd2 {[%clk 0:00:18.4]} 47. Re5 {[%clk 0:00:01.6]}
47... Rd6 {[%clk 0:00:17.8]} 48. Nf4 {[%clk 0:00:02.1]} 48... Rf6 {[%clk
0:00:18.4]} 49. Nd5 {[%clk 0:00:02]} 49... Rf8 {[%clk 0:00:18.2]} 50. Ne3+
{[%clk 0:00:02.6]} 50... Kd2 {[%clk 0:00:16.5]} 51. Rxf5 {[%clk 0:00:03.5]}
51... Rg8 {[%clk 0:00:15.6]} 52. Nf1+ {[%clk 0:00:03.6]} 52... Ke2 {[%clk
0:00:16.1]} 53. Rf2+ {[%clk 0:00:03.7]} 53... Kd3 {[%clk 0:00:15.8]} 54. Rf3+
{[%clk 0:00:03.7]} 54... Ke4 {[%clk 0:00:16.7]} 55. Kf2 {[%clk 0:00:03.6]} 55...
Ke5 {[%clk 0:00:17.6]} 56. g3 {[%clk 0:00:03.6]} 56... Rg7 {[%clk 0:00:17.8]}
57. Re3+ {[%clk 0:00:04]} 57... Kf5 {[%clk 0:00:17.8]} 58. Nd2 {[%clk
0:00:04.6]} 58... Rd7 {[%clk 0:00:17.6]} 59. Nf3 {[%clk 0:00:04.2]} 59... Rc7
{[%clk 0:00:17.6]} 60. Re5+ {[%clk 0:00:04.1]} 60... Kf6 {[%clk 0:00:17.7]} 61.
Rh5 {[%clk 0:00:03]} 61... Rc3 {[%clk 0:00:17.3]} 62. Nd4 {[%clk 0:00:01.9]}
62... Rd3 {[%clk 0:00:17]} 63. Ne2 {[%clk 0:00:02]} 63... Kg7 {[%clk 0:00:16.6]}
64. Rg5+ {[%clk 0:00:02.1]} 64... Kf6 {[%clk 0:00:16.4]} 65. Rg6+ {[%clk
0:00:01.9]} 65... Kf7 {[%clk 0:00:15.7]} 66. Nf4 {[%clk 0:00:01.8]} 66... Ra3
{[%clk 0:00:16]} 67. Rg5 {[%clk 0:00:01.5]} 67... Kf6 {[%clk 0:00:15.9]} 68. Rd5
{[%clk 0:00:01.8]} 68... Kf7 {[%clk 0:00:15.8]} 69. Rd2 {[%clk 0:00:01.9]} 69...
Kf6 {[%clk 0:00:15.9]} 70. g4 {[%clk 0:00:01.9]} 70... Kg5 {[%clk 0:00:16]} 71.
Ne2 {[%clk 0:00:01.1]} 71... Kxg4 {[%clk 0:00:16]} 72. Rd5 {[%clk 0:00:01.5]}
72... Rf3+ {[%clk 0:00:14.7]} 73. Kg2 {[%clk 0:00:02]} 73... Ra3 {[%clk
0:00:14.9]} 74. Ng1 {[%clk 0:00:01.8]} 74... Ra2+ {[%clk 0:00:14.1]} 75. Kf1
{[%clk 0:00:01.8]} 75... Kg3 {[%clk 0:00:12.1]} 76. Rg5+ {[%clk 0:00:02]} 76...
Kf4 {[%clk 0:00:11.9]} 77. Nh3+ {[%clk 0:00:02.1]} 77... Kf3 {[%clk 0:00:10.1]}
78. Rf5+ {[%clk 0:00:01.7]} 78... Kg4 {[%clk 0:00:10.6]} 79. Rf2 {[%clk
0:00:01.6]} 79... Rxf2+ {[%clk 0:00:08.8]} 80. Nxf2+ {[%clk 0:00:02.5]} 1/2-1/2

[Event "Early-Titled-Tuesday-Blitz-May-14-2024"]
[Site "Chess.com"]
[Date "2024.05.14"]
[Round "8"]
[White "HouseOfDurin"]
[Black "kritipatel"]
[Result "0-1"]
[WhiteElo "2247"]
[BlackElo "2171"]
[TimeControl "180+1"]
[EndTime "9:32:10 PDT"]
[Termination "kritipatel won by resignation"]

1. d4 {[%clk 0:03:00.9]} 1... d5 {[%clk 0:02:59.3]} 2. Bg5 {[%clk 0:03:00.6]}
2... h6 {[%clk 0:02:54]} 3. Bh4 {[%clk 0:03:00.4]} 3... Nd7 {[%clk 0:02:53.6]}
4. e3 {[%clk 0:02:59.6]} 4... Ngf6 {[%clk 0:02:54.1]} 5. c4 {[%clk 0:02:58.8]}
5... e6 {[%clk 0:02:54.4]} 6. Nc3 {[%clk 0:02:56.2]} 6... Be7 {[%clk 0:02:53.8]}
7. cxd5 {[%clk 0:02:55.2]} 7... exd5 {[%clk 0:02:53.6]} 8. Nf3 {[%clk
0:02:53.9]} 8... O-O {[%clk 0:02:54]} 9. Ne5 {[%clk 0:02:53.1]} 9... c5 {[%clk
0:02:47.1]} 10. Nxd7 {[%clk 0:02:07]} 10... Bxd7 {[%clk 0:02:11.7]} 11. dxc5
{[%clk 0:02:04.3]} 11... Bxc5 {[%clk 0:02:09.6]} 12. Nxd5 {[%clk 0:01:58.9]}
12... Qa5+ {[%clk 0:02:00.2]} 13. Nc3 {[%clk 0:01:58.6]} 13... Bb4 {[%clk
0:01:49.2]} 14. Bxf6 {[%clk 0:01:57.5]} 14... gxf6 {[%clk 0:01:49.4]} 15. Qd4
{[%clk 0:01:35.5]} 15... Rfd8 {[%clk 0:01:37]} 16. Qxf6 {[%clk 0:01:23.7]} 16...
Qh5 {[%clk 0:01:16.9]} 17. Be2 {[%clk 0:01:12.8]} 17... Bg4 {[%clk 0:01:10]} 18.
Bxg4 {[%clk 0:01:04.8]} 18... Qxg4 {[%clk 0:01:10.2]} 19. Qf3 {[%clk 0:00:47.5]}
19... Qg7 {[%clk 0:00:58.9]} 20. Rc1 {[%clk 0:00:35.9]} 20... Rac8 {[%clk
0:00:58.2]} 21. O-O {[%clk 0:00:29]} 21... Bxc3 {[%clk 0:00:43.3]} 22. Rxc3
{[%clk 0:00:29.9]} 22... Rxc3 {[%clk 0:00:43.8]} 23. bxc3 {[%clk 0:00:30.6]}
23... Qxc3 {[%clk 0:00:44.5]} 24. Qxb7 {[%clk 0:00:30.2]} 24... a5 {[%clk
0:00:43.5]} 25. Qb3 {[%clk 0:00:22.7]} 25... Qe5 {[%clk 0:00:33.4]} 26. g3
{[%clk 0:00:19.1]} 26... Rd2 {[%clk 0:00:31]} 27. Qc4 {[%clk 0:00:14.2]} 27...
Qf5 {[%clk 0:00:28.9]} 28. a4 {[%clk 0:00:13.5]} 28... Rc2 {[%clk 0:00:24.8]}
29. Qh4 {[%clk 0:00:12]} 29... Kg7 {[%clk 0:00:21.6]} 30. g4 {[%clk 0:00:12.1]}
30... Qf3 {[%clk 0:00:19.5]} 31. Qg3 {[%clk 0:00:12]} 31... Qf6 {[%clk
0:00:19.1]} 32. Rd1 {[%clk 0:00:08.4]} 32... Ra2 {[%clk 0:00:17.7]} 33. Rd6
{[%clk 0:00:08.4]} 33... Qa1+ {[%clk 0:00:16.5]} 34. Kg2 {[%clk 0:00:08.4]}
34... Rxa4 {[%clk 0:00:16.9]} 35. Qf4 {[%clk 0:00:06.4]} 35... Rxf4 {[%clk
0:00:16.3]} 36. exf4 {[%clk 0:00:07.3]} 36... Qa3 {[%clk 0:00:16.4]} 37. Rd2
{[%clk 0:00:05.3]} 37... Qb4 {[%clk 0:00:16.7]} 38. Re2 {[%clk 0:00:05.2]} 38...
a4 {[%clk 0:00:17]} 39. g5 {[%clk 0:00:03.8]} 39... Qxf4 {[%clk 0:00:15.8]} 40.
gxh6+ {[%clk 0:00:03.4]} 40... Qxh6 {[%clk 0:00:16.5]} 41. Re3 {[%clk
0:00:03.9]} 41... a3 {[%clk 0:00:15.7]} 42. Rxa3 {[%clk 0:00:03.7]} 42... Qg6+
{[%clk 0:00:15.1]} 43. Kf1 {[%clk 0:00:02.5]} 43... Qb1+ {[%clk 0:00:15.4]} 44.
Kg2 {[%clk 0:00:02.8]} 44... Qb7+ {[%clk 0:00:16]} 45. Kf1 {[%clk 0:00:03.2]}
45... Qb1+ {[%clk 0:00:15.8]} 46. Kg2 {[%clk 0:00:03.5]} 46... Qe4+ {[%clk
0:00:16.3]} 47. Kf1 {[%clk 0:00:03.4]} 47... Qc4+ {[%clk 0:00:16.2]} 48. Kg2
{[%clk 0:00:03.5]} 48... f6 {[%clk 0:00:16.7]} 49. Rg3+ {[%clk 0:00:03.1]} 49...
Kf7 {[%clk 0:00:16.8]} 50. Re3 {[%clk 0:00:03.3]} 50... Qd5+ {[%clk 0:00:17.1]}
51. Kg1 {[%clk 0:00:03.4]} 51... Qg5+ {[%clk 0:00:17.2]} 52. Kf1 {[%clk
0:00:03.7]} 52... Qh4 {[%clk 0:00:17.5]} 53. h3 {[%clk 0:00:03.8]} 53... Qg5
{[%clk 0:00:17.6]} 54. Ke2 {[%clk 0:00:03.9]} 54... f5 {[%clk 0:00:18.1]} 55.
Ke1 {[%clk 0:00:03.3]} 55... f4 {[%clk 0:00:18.6]} 56. Rd3 {[%clk 0:00:02.8]}
56... Qf5 {[%clk 0:00:18.2]} 57. Kd2 {[%clk 0:00:03]} 57... Kf6 {[%clk
0:00:18.7]} 58. Kc2 {[%clk 0:00:03]} 58... f3 {[%clk 0:00:19.2]} 59. Kd2 {[%clk
0:00:02.3]} 59... Qxh3 {[%clk 0:00:19.7]} 60. Re3 {[%clk 0:00:01.5]} 60... Qg2
{[%clk 0:00:20]} 61. Ke1 {[%clk 0:00:01.6]} 61... Kf5 {[%clk 0:00:20.5]} 62. Kd2
{[%clk 0:00:00.5]} 62... Qg1 {[%clk 0:00:20.9]} 63. Kd3 {[%clk 0:00:00.7]} 63...
Qxf2 {[%clk 0:00:21.4]} 64. Kd4 {[%clk 0:00:01.4]} 64... Qd2+ {[%clk 0:00:21.5]}
65. Rd3 {[%clk 0:00:01.3]} 65... Qf4+ {[%clk 0:00:21.2]} 66. Kc3 {[%clk
0:00:01.6]} 66... f2 {[%clk 0:00:21.7]} 67. Rd1 {[%clk 0:00:02.3]} 67... f1=Q
{[%clk 0:00:21.6]} 68. Rxf1 {[%clk 0:00:03.2]} 68... Qxf1 {[%clk 0:00:22.2]} 69.
Kd4 {[%clk 0:00:03.9]} 69... Qd1+ {[%clk 0:00:22.6]} 70. Ke3 {[%clk 0:00:04.5]}
70... Qb3+ {[%clk 0:00:22.5]} 71. Kd4 {[%clk 0:00:04.6]} 71... Kf4 {[%clk
0:00:23]} 72. Kc5 {[%clk 0:00:04.4]} 72... Qd3 {[%clk 0:00:23.3]} 73. Kc6 {[%clk
0:00:04.9]} 73... Ke5 {[%clk 0:00:23.9]} 74. Kb6 {[%clk 0:00:05.3]} 74... Qd5
{[%clk 0:00:24.4]} 75. Kc7 {[%clk 0:00:05.7]} 75... Qe6 {[%clk 0:00:24.4]} 76.
Kb7 {[%clk 0:00:05.8]} 76... Kd5 {[%clk 0:00:25.1]} 77. Kc7 {[%clk 0:00:06.2]}
77... Kc5 {[%clk 0:00:25.7]} 78. Kb7 {[%clk 0:00:06.4]} 78... Qc6+ {[%clk
0:00:26.1]} 79. Kb8 {[%clk 0:00:06.5]} 79... Qd7 {[%clk 0:00:26.7]} 80. Ka8
{[%clk 0:00:06.6]} 80... Kb6 {[%clk 0:00:27.4]} 0-1

[Event "Early-Titled-Tuesday-Blitz-May-14-2024"]
[Site "Chess.com"]
[Date "2024.05.14"]
[Round "8"]
[White "Pedrada88"]
[Black "Korchmar_Vasiliy"]
[Result "0-1"]
[WhiteElo "2557"]
[BlackElo "2681"]
[TimeControl "180+1"]
[EndTime "9:32:14 PDT"]
[Termination "Korchmar_Vasiliy won by resignation"]

1. d4 {[%clk 0:03:00.9]} 1... Nf6 {[%clk 0:02:59.4]} 2. Nf3 {[%clk 0:03:01.1]}
2... g6 {[%clk 0:02:59.9]} 3. g3 {[%clk 0:03:00]} 3... Bg7 {[%clk 0:02:59.6]} 4.
Bg2 {[%clk 0:03:00.5]} 4... O-O {[%clk 0:03:00]} 5. O-O {[%clk 0:03:01.1]} 5...
c5 {[%clk 0:02:59.9]} 6. c3 {[%clk 0:02:59.6]} 6... cxd4 {[%clk 0:02:59.3]} 7.
cxd4 {[%clk 0:03:00.5]} 7... d5 {[%clk 0:02:59.9]} 8. Nc3 {[%clk 0:03:00.8]}
8... Ne4 {[%clk 0:02:59.8]} 9. Ng5 {[%clk 0:02:58.6]} 9... Nxc3 {[%clk
0:02:57.8]} 10. bxc3 {[%clk 0:02:58.5]} 10... Nc6 {[%clk 0:02:58.4]} 11. e4
{[%clk 0:02:53.9]} 11... dxe4 {[%clk 0:02:58.4]} 12. Nxe4 {[%clk 0:02:53.3]}
12... Be6 {[%clk 0:02:57.1]} 13. Nc5 {[%clk 0:02:52.4]} 13... Bc4 {[%clk
0:02:55.7]} 14. Re1 {[%clk 0:02:48.3]} 14... Qc8 {[%clk 0:02:49.6]} 15. Qa4
{[%clk 0:02:42.7]} 15... b5 {[%clk 0:02:49.9]} 16. Qc2 {[%clk 0:02:32.5]} 16...
Bxd4 {[%clk 0:02:39]} 17. Bxc6 {[%clk 0:02:18.5]} 17... Bxc5 {[%clk 0:02:36.9]}
18. Bxa8 {[%clk 0:02:15.9]} 18... Qxa8 {[%clk 0:02:37.8]} 19. Be3 {[%clk
0:02:11.5]} 19... Bd6 {[%clk 0:02:29.2]} 20. a4 {[%clk 0:02:05.8]} 20... Qf3
{[%clk 0:01:57.4]} 21. Qd1 {[%clk 0:01:58.5]} 21... Qxd1 {[%clk 0:01:46.4]} 22.
Rexd1 {[%clk 0:01:53.4]} 22... bxa4 {[%clk 0:01:46.6]} 23. Rxa4 {[%clk
0:01:04.3]} 23... Bb3 {[%clk 0:01:45.6]} 24. Rxd6 {[%clk 0:01:04]} 24... exd6
{[%clk 0:01:24.3]} 25. Rxa7 {[%clk 0:01:03.3]} 25... Bd5 {[%clk 0:01:23.5]} 26.
f4 {[%clk 0:00:32.5]} 26... Rb8 {[%clk 0:01:17.7]} 27. Bd4 {[%clk 0:00:22.3]}
27... Rb1+ {[%clk 0:00:45.8]} 28. Kf2 {[%clk 0:00:22.2]} 28... Rb2+ {[%clk
0:00:46.7]} 29. Ke3 {[%clk 0:00:22.5]} 29... Rxh2 {[%clk 0:00:46.1]} 30. Rd7
{[%clk 0:00:18]} 30... Kf8 {[%clk 0:00:42.8]} 31. Bf6 {[%clk 0:00:16.2]} 31...
Bc6 {[%clk 0:00:43]} 32. Rxd6 {[%clk 0:00:14.7]} 32... Be8 {[%clk 0:00:43.6]}
33. c4 {[%clk 0:00:14.1]} 33... Rc2 {[%clk 0:00:38.5]} 34. Kd4 {[%clk
0:00:08.9]} 34... Rd2+ {[%clk 0:00:31.2]} 35. Ke5 {[%clk 0:00:09.3]} 35... Re2+
{[%clk 0:00:31.5]} 36. Kd5 {[%clk 0:00:09.7]} 36... Rd2+ {[%clk 0:00:27.3]} 37.
Bd4 {[%clk 0:00:09.9]} 37... Rg2 {[%clk 0:00:27]} 38. c5 {[%clk 0:00:09.7]}
38... Rxg3 {[%clk 0:00:26.3]} 39. c6 {[%clk 0:00:10.2]} 39... Bxc6+ {[%clk
0:00:13.7]} 40. Rxc6 {[%clk 0:00:09.5]} 40... h5 {[%clk 0:00:02.5]} 41. Bf6
{[%clk 0:00:08.2]} 41... Re3 {[%clk 0:00:02.4]} 42. Rc8+ {[%clk 0:00:07.9]}
42... Re8 {[%clk 0:00:02.9]} 43. Bg7+ {[%clk 0:00:08.3]} 43... Ke7 {[%clk
0:00:03.4]} 44. Rxe8+ {[%clk 0:00:06.5]} 44... Kxe8 {[%clk 0:00:03.8]} 45. Bf6
{[%clk 0:00:07.1]} 45... Kd7 {[%clk 0:00:04]} 46. Ke5 {[%clk 0:00:07.2]} 46...
Kc6 {[%clk 0:00:03.5]} 47. Bg5 {[%clk 0:00:07.2]} 47... Kd7 {[%clk 0:00:02.8]}
48. Kf6 {[%clk 0:00:07.5]} 48... Ke8 {[%clk 0:00:03.5]} 49. Bh4 {[%clk
0:00:06.9]} 49... Kf8 {[%clk 0:00:03.5]} 50. Bg5 {[%clk 0:00:07.4]} 50... Kg8
{[%clk 0:00:02.9]} 51. Bh4 {[%clk 0:00:07.6]} 51... Kf8 {[%clk 0:00:03.3]} 52.
Kg5 {[%clk 0:00:07.1]} 52... Kg7 {[%clk 0:00:03.5]} 53. Bf2 {[%clk 0:00:05.5]}
53... f6+ {[%clk 0:00:03.4]} 54. Kh4 {[%clk 0:00:06]} 54... Kh6 {[%clk 0:00:04]}
55. Be3 {[%clk 0:00:06]} 55... Kg7 {[%clk 0:00:04.4]} 56. Kg3 {[%clk 0:00:06.2]}
56... Kf7 {[%clk 0:00:04.9]} 57. Kf3 {[%clk 0:00:06.8]} 57... Ke6 {[%clk
0:00:05.2]} 58. Ke4 {[%clk 0:00:07.2]} 58... Kd6 {[%clk 0:00:03.4]} 59. Bf2
{[%clk 0:00:07.4]} 59... Ke6 {[%clk 0:00:03.7]} 60. Bh4 {[%clk 0:00:07.7]} 60...
Kf7 {[%clk 0:00:01.8]} 61. Be1 {[%clk 0:00:07.2]} 61... Ke6 {[%clk 0:00:02.2]}
62. Bf2 {[%clk 0:00:06.2]} 62... Kd6 {[%clk 0:00:02.5]} 63. Kd4 {[%clk
0:00:05.7]} 63... Ke6 {[%clk 0:00:03]} 64. Bg3 {[%clk 0:00:05]} 64... Kf5 {[%clk
0:00:03.3]} 65. Ke3 {[%clk 0:00:04.4]} 65... Kg4 {[%clk 0:00:03.9]} 66. Bf2
{[%clk 0:00:03.6]} 66... h4 {[%clk 0:00:04]} 67. Bg1 {[%clk 0:00:02.1]} 67...
Kg3 {[%clk 0:00:04.3]} 68. Ke4 {[%clk 0:00:02.3]} 68... h3 {[%clk 0:00:03.8]}
69. f5 {[%clk 0:00:02.9]} 69... gxf5+ {[%clk 0:00:02.9]} 70. Kxf5 {[%clk
0:00:02.8]} 70... Kg2 {[%clk 0:00:03.6]} 71. Kg4 {[%clk 0:00:01.7]} 71... f5+
{[%clk 0:00:04.2]} 72. Kh4 {[%clk 0:00:01.5]} 72... f4 {[%clk 0:00:04.8]} 73.
Bh2 {[%clk 0:00:01.1]} 73... f3 {[%clk 0:00:05.2]} 74. Bg3 {[%clk 0:00:01.1]}
74... f2 {[%clk 0:00:05.3]} 75. Bxf2 {[%clk 0:00:01.5]} 75... h2 {[%clk
0:00:05.9]} 76. Kg4 {[%clk 0:00:01.2]} 76... h1=Q {[%clk 0:00:06.8]} 77. Bg3
{[%clk 0:00:01.8]} 77... Qh3+ {[%clk 0:00:07.2]} 78. Kf4 {[%clk 0:00:02.4]}
78... Qxg3+ {[%clk 0:00:08.1]} 79. Kf5 {[%clk 0:00:03]} 79... Qf3+ {[%clk
0:00:08.2]} 80. Ke6 {[%clk 0:00:03.5]} 80... Qf4 {[%clk 0:00:08.5]} 81. Kd5
{[%clk 0:00:03.5]} 81... Qe3 {[%clk 0:00:08.7]} 0-1